bitfinex/quotes_BTCUSD_20241021
["timestamp","ask_amount","ask_price","bid_price","bid_amount"]
[1729504263425,0.38131471,68340.0,68339.0,0.012654]
[1729504263659,0.38131471,68340.0,68339.0,0.158983]
[1729504263899,0.38131471,68340.0,68339.0,0.012654]
[1729504264361,0.37131471,68340.0,68339.0,0.012654]
[1729504264616,0.38131471,68340.0,68339.0,0.012654]
[1729504267855,0.27131471,68340.0,68339.0,0.158983]
[1729504268110,0.01624994,68340.0,68339.0,0.16356062]
[1729504268797,0.01624994,68340.0,68339.0,0.15756062]
[1729504269284,0.01624994,68340.0,68339.0,0.16056062]
[1729504269513,0.01724994,68340.0,68339.0,0.16756062]
[1729504269742,0.01724994,68340.0,68339.0,0.15956062]
[1729504269976,0.01724994,68340.0,68339.0,0.16756062]
[1729504270663,0.01624994,68340.0,68339.0,0.16056062]
[1729504271181,0.01624994,68340.0,68339.0,0.16756062]
[1729504271411,0.01624994,68340.0,68339.0,0.15256062]
[1729504271630,0.01624994,68340.0,68339.0,0.16556062]
[1729504271851,0.01624994,68340.0,68339.0,0.15956062]
[1729504272079,0.01624994,68340.0,68339.0,0.15256062]
[1729504272305,0.01624994,68340.0,68339.0,0.15856062]
[1729504272569,0.01624994,68340.0,68339.0,0.16556062]
[1729504273041,0.01124994,68340.0,68339.0,0.31951977]
[1729504273488,0.005,68343.0,68342.0,0.146322]
[1729504273711,0.005,68343.0,68342.0,0.15089962]
[1729504274843,0.005828,68344.0,68342.0,0.16753677]
[1729504275072,0.005,68343.0,68342.0,0.160322]
[1729504275282,0.005828,68344.0,68343.0,0.14632]
[1729504275533,0.000828,68344.0,68343.0,0.1558968]
[1729504277759,0.000828,68344.0,68343.0,0.1628968]
[1729504278631,0.000828,68344.0,68343.0,0.1698968]
[1729504281229,0.000828,68344.0,68343.0,0.31885595]
[1729504283421,0.000828,68344.0,68343.0,0.31427915]
[1729504283628,0.000828,68344.0,68343.0,0.31885569]
[1729504284965,0.000828,68344.0,68343.0,0.38444896]
[1729504285181,0.000828,68344.0,68343.0,0.31885569]
[1729504285415,0.000828,68344.0,68343.0,0.38453724]
[1729504285844,0.000828,68344.0,68343.0,0.31885569]
[1729504286548,0.000828,68344.0,68343.0,0.42817781]
[1729504287196,0.000828,68344.0,68343.0,0.42817743]
[1729504287853,0.000828,68344.0,68343.0,0.31185531]
[1729504288066,0.000828,68344.0,68343.0,0.30485531]
[1729504288276,0.000828,68344.0,68343.0,0.31478133]
[1729504288487,0.000828,68344.0,68343.0,0.63690691]
[1729504288710,1e-06,68344.0,68343.0,0.7337074]
[1729504288907,1e-06,68344.0,68343.0,0.69754031]
[1729504289335,1e-06,68344.0,68343.0,0.82875951]
[1729504289745,1e-06,68344.0,68343.0,0.69754031]
[1729504290379,1e-06,68344.0,68343.0,0.82871565]
[1729504290588,1e-06,68344.0,68343.0,0.70454031]
[1729504290795,1e-06,68344.0,68343.0,0.8287143]
[1729504291005,1e-06,68344.0,68343.0,0.8357143]
[1729504291226,1e-06,68344.0,68343.0,0.70454031]
[1729504291451,1e-06,68344.0,68343.0,0.69754031]
[1729504291641,1e-06,68344.0,68343.0,0.8217143]
[1729504291856,1e-06,68344.0,68343.0,0.8357143]
[1729504292277,1e-06,68344.0,68343.0,0.70454031]
[1729504292478,1e-06,68344.0,68343.0,0.8357143]
[1729504293328,1e-06,68344.0,68343.0,0.70454031]
[1729504294157,1e-06,68344.0,68343.0,0.69996415]
[1729504294366,1e-06,68344.0,68343.0,0.70453941]
[1729504295838,1e-06,68344.0,68343.0,0.8357134]
[1729504296477,1e-06,68344.0,68343.0,0.70453941]
[1729504297133,1e-06,68344.0,68343.0,0.89822601]
[1729504297358,0.079658,68367.0,68366.0,0.146271]
[1729504297359,0.001658,68367.0,68366.0,0.146271]
[1729504297588,0.001658,68367.0,68366.0,0.32280541]
[1729504297804,0.001658,68367.0,68366.0,0.32499884]
[1729504298449,0.001658,68367.0,68366.0,0.32499876]
[1729504300414,0.272958,68367.0,68366.0,0.31399876]
[1729504300833,0.272958,68367.0,68366.0,0.32099876]
[1729504302524,0.272958,68367.0,68366.0,0.31642442]
[1729504302961,0.272958,68367.0,68366.0,0.32099895]
[1729504303378,0.272958,68367.0,68366.0,0.30942442]
[1729504303588,0.272958,68367.0,68366.0,0.31642442]
[1729504304045,0.195358,68367.0,68366.0,0.30942442]
[1729504304161,0.195358,68367.0,68366.0,0.31642442]
[1729504304823,0.195358,68367.0,68366.0,0.31399893]
[1729504305236,0.195358,68367.0,68366.0,0.32099893]
[1729504305648,0.195358,68367.0,68366.0,0.31399893]
[1729504306066,0.195358,68367.0,68366.0,0.32099882]
[1729504312947,0.195358,68367.0,68366.0,0.3209989]
[1729504316187,0.195358,68367.0,68366.0,0.32099895]
[1729504318630,0.195358,68367.0,68366.0,0.38647405]
[1729504319496,0.195358,68367.0,68366.0,0.32099895]
[1729504319743,0.195358,68367.0,68366.0,0.38648698]
[1729504320467,0.195358,68367.0,68366.0,0.3209989]
[1729504320709,0.195358,68367.0,68366.0,0.38649821]
[1729504321393,0.195358,68367.0,68366.0,0.38650822]
[1729504322291,0.1951819,68367.0,68366.0,0.38650822]
[1729504322720,0.1951819,68367.0,68366.0,0.3209989]
[1729504323412,0.1951819,68367.0,68366.0,0.40824939]
[1729504323883,0.0014819,68367.0,68366.0,0.40824939]
[1729504324315,0.0014819,68367.0,68366.0,0.40837919]
[1729504324778,0.0014819,68367.0,68366.0,0.3209989]
[1729504325437,0.0014819,68367.0,68366.0,0.43006202]
[1729504325650,0.0014819,68367.0,68366.0,0.42548754]
[1729504325904,0.0014819,68367.0,68366.0,0.43006188]
[1729504327023,0.0014819,68367.0,68366.0,0.4084137]
[1729504327268,0.0014819,68367.0,68366.0,0.40383936]
[1729504327484,0.0014819,68367.0,68366.0,0.31642442]
[1729504327712,0.0014819,68367.0,68366.0,0.42548754]
[1729504328160,0.0014819,68367.0,68366.0,0.31642442]
[1729504330013,9e-07,68367.0,68366.0,0.33942442]
[1729504330227,0.0181845,68372.0,68371.0,0.15126]
[1729504330228,4e-07,68372.0,68371.0,0.15126]
[1729504330446,4e-07,68372.0,68371.0,0.30479319]
[1729504331172,4e-07,68372.0,68371.0,0.30771802]
[1729504331401,4e-07,68372.0,68371.0,0.30479319]
[1729504331629,4e-07,68372.0,68371.0,0.31179319]
[1729504331863,0.2800004,68372.0,68371.0,0.31179319]
[1729504332072,0.29183413,68372.0,68371.0,0.31179319]
[1729504332533,0.29183413,68372.0,68371.0,0.31879319]
[1729504333182,0.29183413,68372.0,68371.0,0.31879332]
[1729504333395,0.29183413,68372.0,68371.0,0.31421915]
[1729504333622,0.29183413,68372.0,68371.0,0.31879326]
[1729504334070,0.01183413,68372.0,68371.0,0.31879326]
[1729504336660,0.27596113,68372.0,68371.0,0.31879326]
[1729504336890,0.2641274,68372.0,68371.0,0.31879326]
[1729504337095,0.27596698,68372.0,68371.0,0.31879326]
[1729504339974,0.27596698,68372.0,68371.0,0.31679326]
[1729504340420,0.2641274,68372.0,68371.0,0.31679326]
[1729504341145,0.27596698,68372.0,68371.0,0.31679326]
[1729504341631,0.19756698,68372.0,68371.0,0.31679326]
[1729504342106,0.1857274,68372.0,68371.0,0.31679326]
[1729504342325,0.19756698,68372.0,68371.0,0.31679326]
[1729504344321,0.19756698,68372.0,68371.0,0.31679357]
[1729504347556,0.19756698,68372.0,68371.0,0.44843162]
[1729504347801,0.1857274,68372.0,68371.0,0.31679357]
[1729504348253,0.1857274,68372.0,68371.0,0.31679352]
[1729504348697,0.1857274,68372.0,68371.0,0.44843402]
[1729504348920,0.1857274,68372.0,68371.0,0.31679352]
[1729504349616,0.1857274,68372.0,68371.0,0.45008927]
[1729504350911,0.1857274,68372.0,68371.0,0.31844752]
[1729504356473,0.1857274,68372.0,68371.0,0.31844742]
[1729504356705,0.0008274,68372.0,68371.0,0.31844742]
[1729504358315,0.0008274,68372.0,68371.0,0.3331386]
[1729504361986,0.0008274,68372.0,68371.0,0.31844742]
[1729504362425,0.2683274,68372.0,68371.0,0.31844742]
[1729504365740,0.0683274,68372.0,68371.0,0.31844742]
[1729504368117,0.0683274,68372.0,68371.0,0.31844752]
[1729504370738,0.08019756,68372.0,68371.0,0.31844752]
[1729504371701,0.08019756,68372.0,68371.0,0.31844756]
[1729504371929,0.0683274,68372.0,68371.0,0.31844756]
[1729504372423,0.0683274,68372.0,68371.0,0.31144756]
[1729504372874,0.0683274,68372.0,68371.0,0.31944756]
[1729504373321,0.0683274,68372.0,68371.0,0.31144756]
[1729504373532,0.0691544,68372.0,68371.0,0.31944756]
[1729504376098,0.0810205,68372.0,68371.0,0.31944756]
[1729504379058,0.0810205,68372.0,68371.0,0.31487315]
[1729504379282,0.0810205,68372.0,68371.0,0.31944756]
[1729504381047,0.2646205,68372.0,68371.0,0.31944756]
[1729504381488,0.2527544,68372.0,68371.0,0.31944756]
[1729504381701,0.2527544,68372.0,68371.0,0.31487315]
[1729504381915,0.2527544,68372.0,68371.0,0.31944756]
[1729504382992,0.2527544,68372.0,68371.0,0.31444756]
[1729504384251,0.2527544,68372.0,68371.0,0.31944756]
[1729504384460,0.000827,68372.0,68371.0,0.31944756]
[1729504389619,0.268727,68372.0,68371.0,0.16548841]
[1729504389837,0.268727,68372.0,68371.0,0.27525434]
[1729504390057,0.28059246,68372.0,68371.0,0.16548841]
[1729504390289,0.29109748,68372.0,68371.0,0.08709117]
[1729504390532,0.2679,68367.0,68365.0,0.06586276]
[1729504390753,0.2779,68367.0,68366.0,0.21948479]
[1729504390995,0.27871162,68367.0,68366.0,0.36575579]
[1729504391218,0.27371162,68367.0,68366.0,0.15011927]
[1729504391975,0.27371162,68367.0,68366.0,0.15611927]
[1729504392418,0.27371162,68367.0,68366.0,0.16311927]
[1729504393739,0.28556785,68367.0,68366.0,0.16311927]
[1729504395816,0.28056785,68367.0,68366.0,0.16311927]
[1729504396054,0.28556785,68367.0,68366.0,0.16311927]
[1729504398520,0.28056785,68367.0,68366.0,0.16311927]
[1729504398753,0.28556785,68367.0,68366.0,0.16311927]
[1729504407528,0.28056785,68367.0,68366.0,0.16311927]
[1729504407757,0.28556785,68367.0,68366.0,0.16311927]
[1729504408190,0.30846554,68367.0,68366.0,0.16311927]
[1729504410174,0.28556785,68367.0,68366.0,0.16311927]
[1729504414275,0.28556785,68367.0,68366.0,0.01684827]
[1729504415356,0.28556785,68367.0,68366.0,0.16311927]
[1729504415604,0.28556785,68367.0,68366.0,0.01684827]
[1729504415835,0.43183685,68367.0,68366.0,0.01684827]
[1729504416551,0.28556785,68367.0,68366.0,0.01684827]
[1729504418559,0.43183685,68367.0,68366.0,0.01684827]
[1729504418766,0.28556785,68367.0,68366.0,0.01684827]
[1729504419418,0.28556785,68367.0,68366.0,0.014654]
[1729504419840,0.43183685,68367.0,68366.0,0.014654]
[1729504420067,0.28556785,68367.0,68366.0,0.014654]
[1729504420295,0.43683685,68367.0,68366.0,0.014654]
[1729504420510,0.43706255,68367.0,68366.0,0.014654]
[1729504420954,0.29079355,68367.0,68366.0,0.014654]
[1729504421179,0.29079355,68367.0,68366.0,0.160925]
[1729504422342,0.29079355,68367.0,68366.0,0.014654]
[1729504422563,0.29079355,68367.0,68366.0,0.160925]
[1729504423671,0.29079355,68367.0,68366.0,0.014654]
[1729504423883,0.46630731,68367.0,68366.0,0.014654]
[1729504424520,0.29079355,68367.0,68366.0,0.160925]
[1729504427742,0.28579355,68367.0,68366.0,0.160925]
[1729504428611,0.29079355,68367.0,68366.0,0.160925]
[1729504429459,0.28579355,68367.0,68366.0,0.160925]
[1729504429945,0.29079355,68367.0,68366.0,0.160925]
[1729504430625,0.28579355,68367.0,68366.0,0.160925]
[1729504433664,0.28579355,68367.0,68366.0,0.16550065]
[1729504434527,0.28579355,68367.0,68366.0,0.16550063]
[1729504434990,0.28579355,68367.0,68366.0,0.16550061]
[1729504435211,0.09839355,68367.0,68366.0,0.16550061]
[1729504436329,0.01789355,68367.0,68366.0,0.16550061]
[1729504436557,0.01789355,68367.0,68366.0,0.25305591]
[1729504436780,0.005,68367.0,68366.0,0.25305591]
[1729504437666,0.005,68367.0,68366.0,0.4072416]
[1729504437911,0.005,68367.0,68366.0,0.31945976]
[1729504438176,0.005,68367.0,68366.0,0.42918706]
[1729504438404,0.005,68367.0,68366.0,0.31945976]
[1729504438867,0.005,68367.0,68366.0,0.42918706]
[1729504439586,0.005,68370.0,68369.0,0.151265]
[1729504439819,0.000827,68371.0,68370.0,0.151262]
[1729504440056,0.000827,68371.0,68370.0,0.30479676]
[1729504440948,0.001827,68371.0,68370.0,0.31079676]
[1729504441900,0.001827,68371.0,68370.0,0.38919676]
[1729504442331,0.000827,68371.0,68370.0,0.38319676]
[1729504442754,0.001827,68371.0,68370.0,0.38919676]
[1729504442974,0.000827,68371.0,68370.0,0.38319676]
[1729504443402,0.000827,68371.0,68370.0,0.38919676]
[1729504443826,0.000827,68371.0,68370.0,0.39519676]
[1729504444040,0.000827,68371.0,68370.0,0.38319676]
[1729504444484,0.000827,68371.0,68370.0,0.38919676]
[1729504445412,0.001827,68371.0,68370.0,0.50470785]
[1729504446093,0.001827,68371.0,68370.0,0.50470534]
[1729504446329,0.001827,68371.0,68370.0,0.42630534]
[1729504446554,0.001827,68371.0,68370.0,0.31679676]
[1729504448232,0.001827,68371.0,68370.0,0.31222115]
[1729504448472,0.001827,68371.0,68370.0,0.40436361]
[1729504449688,0.001827,68371.0,68370.0,0.41911364]
[1729504450155,0.001827,68371.0,68370.0,0.40436361]
[1729504450413,0.001827,68371.0,68370.0,0.31679571]
[1729504451122,0.001827,68371.0,68370.0,0.38245431]
[1729504452238,0.001827,68371.0,68370.0,0.37787975]
[1729504452456,0.001827,68371.0,68370.0,0.38245442]
[1729504453419,0.001827,68371.0,68370.0,0.38410842]
[1729504453657,0.001827,68371.0,68370.0,0.31844982]
[1729504454385,0.001827,68371.0,68370.0,0.3840873]
[1729504456010,0.001827,68371.0,68370.0,0.38408052]
[1729504456454,0.001827,68371.0,68370.0,0.3184497]
[1729504456895,0.001827,68371.0,68370.0,0.38408052]
[1729504461347,0.001827,68371.0,68370.0,0.5068497]
[1729504461563,0.001827,68371.0,68370.0,0.59435746]
[1729504461771,0.001827,68371.0,68370.0,0.5068497]
[1729504463239,0.001827,68371.0,68370.0,0.59432473]
[1729504463457,0.001827,68371.0,68370.0,0.59432303]
[1729504463660,0.001827,68371.0,68370.0,0.59432291]
[1729504463867,0.001827,68371.0,68370.0,0.59432226]
[1729504464080,0.001827,68371.0,68370.0,0.5068497]
[1729504464285,0.001827,68371.0,68370.0,0.59432279]
[1729504464710,0.001827,68371.0,68370.0,0.5068497]
[1729504465338,0.001827,68371.0,68370.0,0.3184497]
[1729504465979,0.001827,68371.0,68370.0,0.4278344]
[1729504466193,0.001827,68371.0,68370.0,0.3184497]
[1729504466627,0.001827,68371.0,68370.0,0.42778533]
[1729504466855,0.001827,68371.0,68370.0,0.42321078]
[1729504467080,0.001827,68371.0,68370.0,0.42778497]
[1729504467301,0.001827,68371.0,68370.0,0.42778498]
[1729504468404,0.001827,68371.0,68370.0,0.31844935]
[1729504468660,0.001827,68371.0,68370.0,0.4277877]
[1729504469019,0.001827,68371.0,68370.0,0.31844935]
[1729504469881,0.001827,68371.0,68370.0,0.38405888]
[1729504470109,0.01476227,68371.0,68370.0,0.38405888]
[1729504470249,0.001827,68371.0,68370.0,0.31844935]
[1729504470695,0.001827,68371.0,68370.0,0.38406431]
[1729504470885,0.001827,68371.0,68370.0,0.31844935]
[1729504471457,0.001827,68371.0,68370.0,0.40593637]
[1729504473556,0.001827,68371.0,68370.0,0.31844935]
[1729504473787,0.01477835,68371.0,68370.0,0.31844935]
[1729504473989,0.001827,68371.0,68370.0,0.31844935]
[1729504474399,0.001827,68371.0,68370.0,0.42780812]
[1729504475556,0.001827,68371.0,68370.0,0.31844935]
[1729504477366,1e-06,68372.0,68370.0,0.82708587]
[1729504477591,1e-06,68372.0,68371.0,0.40771813]
[1729504477812,1e-06,68372.0,68371.0,0.40479335]
[1729504478450,1e-06,68372.0,68371.0,0.5986888]
[1729504478661,0.001001,68372.0,68371.0,0.5986888]
[1729504479084,0.002001,68372.0,68371.0,0.6046888]
[1729504479299,1e-06,68372.0,68371.0,0.6326888]
[1729504479504,1e-06,68372.0,68371.0,0.43879335]
[1729504480186,1e-06,68372.0,68371.0,0.63277421]
[1729504480602,1e-06,68372.0,68371.0,0.43879335]
[1729504480836,1e-06,68372.0,68371.0,0.63278964]
[1729504481308,0.001001,68372.0,68371.0,0.63978964]
[1729504481529,0.001001,68372.0,68371.0,0.44579335]
[1729504482872,0.001001,68372.0,68371.0,0.41779335]
[1729504483108,0.001001,68372.0,68371.0,0.61182863]
[1729504483374,0.001001,68372.0,68371.0,0.41779335]
[1729504484490,0.001001,68372.0,68371.0,0.61182863]
[1729504485167,0.001001,68372.0,68371.0,0.61182823]
[1729504485587,0.001001,68372.0,68371.0,0.41779295]
[1729504486954,0.001001,68372.0,68371.0,0.41779288]
[1729504488359,0.001828,68372.0,68371.0,0.41779288]
[1729504488851,0.001828,68372.0,68371.0,0.60729528]
[1729504489112,0.001828,68372.0,68371.0,0.61186898]
[1729504490097,0.001828,68372.0,68371.0,0.41779285]
[1729504490323,0.001828,68372.0,68371.0,0.61186129]
[1729504492530,0.001828,68372.0,68371.0,0.41779285]
[1729504492777,0.001828,68372.0,68371.0,0.41779279]
[1729504493273,1e-06,68372.0,68371.0,0.41779279]
[1729504493969,1e-06,68372.0,68371.0,0.44579279]
[1729504494248,1e-06,68372.0,68371.0,0.63983698]
[1729504494736,1e-06,68372.0,68371.0,0.44579279]
[1729504495225,1e-06,68372.0,68371.0,0.63983485]
[1729504496170,1e-06,68372.0,68371.0,0.44579279]
[1729504496646,1e-06,68372.0,68371.0,0.63983283]
[1729504497120,1e-06,68372.0,68371.0,0.90783283]
[1729504498037,1e-06,68372.0,68371.0,0.71379279]
[1729504498979,1e-06,68372.0,68371.0,0.72487779]
[1729504499179,1e-06,68372.0,68371.0,0.72079279]
[1729504499446,1e-06,68372.0,68371.0,0.71579279]
[1729504499921,1e-06,68372.0,68371.0,0.71787779]
[1729504500146,1e-06,68372.0,68371.0,0.72487779]
[1729504500372,1e-06,68372.0,68371.0,0.72487753]
[1729504500566,1e-06,68372.0,68371.0,0.72053153]
[1729504500824,0.001658,68385.0,68384.0,0.151233]
[1729504501051,0.001658,68385.0,68384.0,0.30476553]
[1729504501271,0.001658,68386.0,68385.0,0.15123]
[1729504501495,1e-06,68386.0,68385.0,0.55915932]
[1729504501721,1e-06,68386.0,68385.0,0.40476221]
[1729504502381,0.190001,68386.0,68385.0,0.40476221]
[1729504502607,0.267801,68386.0,68385.0,0.40476221]
[1729504502829,0.267801,68386.0,68385.0,0.40018915]
[1729504503046,1e-06,68386.0,68385.0,0.62039893]
[1729504503263,1e-06,68386.0,68385.0,0.53616378]
[1729504503483,1e-06,68386.0,68385.0,0.40476241]
[1729504503702,1e-06,68386.0,68385.0,0.41986344]
[1729504504359,1e-06,68386.0,68385.0,0.43186344]
[1729504504574,1e-06,68386.0,68385.0,0.72526344]
[1729504504802,1e-06,68386.0,68385.0,0.71326344]
[1729504505070,1e-06,68386.0,68385.0,0.63926344]
[1729504505290,1e-06,68386.0,68385.0,0.55720841]
[1729504505512,1e-06,68386.0,68385.0,0.42586344]
[1729504505739,1e-06,68386.0,68385.0,0.43186344]
[1729504506458,1e-06,68386.0,68385.0,0.55721295]
[1729504506677,1e-06,68386.0,68385.0,0.42586328]
[1729504507382,0.269401,68386.0,68385.0,0.31676225]
[1729504507604,0.269401,68386.0,68385.0,0.40433471]
[1729504507830,0.28234033,68386.0,68385.0,0.40433412]
[1729504508050,0.269401,68386.0,68385.0,0.40433412]
[1729504508270,0.28234033,68386.0,68385.0,0.39833412]
[1729504508491,0.269401,68386.0,68385.0,0.39233785]
[1729504508711,0.269401,68386.0,68385.0,0.61397437]
[1729504508933,0.28234033,68386.0,68385.0,0.39833785]
[1729504509158,0.269401,68386.0,68385.0,0.39833785]
[1729504509366,0.28234033,68386.0,68385.0,0.40565561]
[1729504509578,0.269401,68386.0,68385.0,0.41165561]
[1729504509787,0.28234033,68386.0,68385.0,0.32408001]
[1729504510003,0.264401,68386.0,68385.0,0.40565561]
[1729504510441,0.264401,68386.0,68385.0,0.41165561]
[1729504511108,0.264401,68386.0,68385.0,0.40565561]
[1729504511338,0.079501,68386.0,68385.0,0.41165561]
[1729504511608,0.079501,68386.0,68385.0,0.43354951]
[1729504511833,0.079501,68386.0,68385.0,0.32408001]
[1729504512042,0.079501,68386.0,68385.0,0.33669041]
[1729504512272,0.079501,68386.0,68385.0,0.55232693]
[1729504512273,0.01292806,68386.0,68385.0,0.55232693]
[1729504512499,0.01292806,68386.0,68385.0,0.43069041]
[1729504512744,1e-06,68386.0,68385.0,0.42469041]
[1729504512956,1e-06,68386.0,68385.0,0.42573401]
[1729504514127,1e-06,68386.0,68385.0,0.43668822]
[1729504515019,1e-06,68386.0,68385.0,0.42573401]
[1729504515654,1e-06,68386.0,68385.0,0.41841625]
[1729504516983,1e-06,68386.0,68385.0,0.41384315]
[1729504517201,1e-06,68386.0,68385.0,0.41841607]
[1729504519457,0.275201,68386.0,68385.0,0.41841607]
[1729504520563,0.275201,68386.0,68385.0,0.31341607]
[1729504520796,0.275201,68386.0,68385.0,0.40633834]
[1729504521022,0.275201,68386.0,68385.0,0.41733834]
[1729504521240,0.275201,68386.0,68385.0,0.42191179]
[1729504521241,0.280201,68386.0,68385.0,0.42191179]
[1729504521451,0.280201,68386.0,68385.0,0.41691179]
[1729504521724,0.280201,68386.0,68385.0,0.41091179]
[1729504521934,0.280201,68386.0,68385.0,0.41691179]
[1729504522164,0.280201,68386.0,68385.0,0.26195264]
[1729504522387,0.280201,68386.0,68385.0,0.24006886]
[1729504522599,0.29314369,68386.0,68385.0,0.24606886]
[1729504523021,0.29314369,68386.0,68385.0,0.24008421]
[1729504523453,0.29314369,68386.0,68385.0,0.24608421]
[1729504523882,0.29314369,68386.0,68385.0,0.24008421]
[1729504524099,0.29314369,68386.0,68385.0,0.25208421]
[1729504524311,0.29314369,68386.0,68385.0,0.24608421]
[1729504524739,0.29314369,68386.0,68385.0,0.25208421]
[1729504525382,0.29314369,68386.0,68385.0,0.16445745]
[1729504526050,0.29314369,68386.0,68385.0,0.15845745]
[1729504526473,0.29314369,68386.0,68385.0,0.16445745]
[1729504527586,0.29314369,68386.0,68385.0,0.159884]
[1729504527804,0.29314369,68386.0,68385.0,0.16445772]
[1729504528198,0.29314369,68386.0,68385.0,0.25209635]
[1729504529414,0.29314369,68386.0,68385.0,0.16445772]
[1729504529651,0.29314369,68386.0,68385.0,0.25209726]
[1729504531130,0.280201,68386.0,68385.0,0.25209726]
[1729504531584,0.29312776,68386.0,68385.0,0.16445772]
[1729504532294,0.29312776,68386.0,68385.0,0.25210046]
[1729504532539,0.29312776,68386.0,68385.0,0.16445772]
[1729504538879,0.29312776,68386.0,68385.0,0.16445763]
[1729504542188,0.29312776,68386.0,68385.0,0.27400971]
[1729504542652,0.29312776,68386.0,68385.0,0.16445763]
[1729504545130,0.29312776,68386.0,68385.0,0.25210496]
[1729504545580,0.29312776,68386.0,68385.0,0.25210475]
[1729504545803,0.29312776,68386.0,68385.0,0.16445772]
[1729504546017,0.29312776,68386.0,68385.0,0.25210457]
[1729504546888,0.29312776,68386.0,68385.0,0.24753085]
[1729504547324,0.29312776,68386.0,68385.0,0.25210457]
[1729504547763,0.29312776,68386.0,68385.0,0.25210455]
[1729504552191,0.29312776,68386.0,68385.0,0.16445772]
[1729504553050,0.29312776,68386.0,68385.0,0.16445768]
[1729504553269,0.29312776,68386.0,68385.0,0.25212059]
[1729504554542,0.29312776,68386.0,68385.0,0.16445768]
[1729504554750,0.29312776,68386.0,68385.0,0.15845768]
[1729504554979,0.29312776,68386.0,68385.0,0.16445768]
[1729504555203,0.29312776,68386.0,68385.0,0.15845768]
[1729504555828,0.29312776,68386.0,68385.0,0.16445768]
[1729504556719,0.29312776,68386.0,68385.0,0.16445777]
[1729504558008,0.29312776,68386.0,68385.0,0.23020161]
[1729504558220,0.29312776,68386.0,68385.0,0.16445777]
[1729504560248,0.29312776,68386.0,68385.0,0.1644581]
[1729504565116,0.30309162,68386.0,68385.0,0.1644581]
[1729504565332,0.31601392,68386.0,68385.0,0.23022291]
[1729504565988,0.31601392,68386.0,68385.0,0.1644581]
[1729504566201,0.31601392,68386.0,68385.0,0.159884]
[1729504566418,0.31601392,68386.0,68385.0,0.23022291]
[1729504567079,0.31601392,68386.0,68385.0,0.1644581]
[1729504569301,0.2931233,68386.0,68385.0,0.1644581]
[1729504575199,0.2931233,68386.0,68385.0,0.16445812]
[1729504580415,0.2931233,68386.0,68385.0,0.159884]
[1729504580625,0.2931233,68386.0,68385.0,0.16445815]
[1729504582370,0.2931233,68386.0,68385.0,0.15845815]
[1729504582798,0.2931233,68386.0,68385.0,0.16445815]
[1729504583421,0.2931233,68386.0,68385.0,0.15845815]
[1729504583630,0.2931233,68386.0,68385.0,0.16245815]
[1729504583851,0.2931233,68386.0,68385.0,0.15645815]
[1729504584068,0.2931233,68386.0,68385.0,0.15645818]
[1729504584280,0.2931233,68386.0,68385.0,0.15945818]
[1729504587802,0.2931233,68386.0,68385.0,0.154884]
[1729504588024,0.2931233,68386.0,68385.0,0.1594582]
[1729504590311,0.2931233,68386.0,68385.0,0.154884]
[1729504594062,0.3031233,68386.0,68385.0,0.008654]
[1729504594284,0.3031233,68386.0,68385.0,0.154884]
[1729504595016,0.3031233,68386.0,68385.0,0.008654]
[1729504595232,0.4493513,68386.0,68385.0,0.008654]
[1729504595684,0.3031233,68386.0,68385.0,0.008654]
[1729504596399,0.67285488,68386.0,68385.0,0.008654]
[1729504596627,0.67485488,68386.0,68385.0,0.008654]
[1729504597289,0.45208245,68386.0,68385.0,0.008654]
[1729504597537,0.45208245,68386.0,68385.0,0.005654]
[1729504597756,0.59831045,68386.0,68385.0,0.001654]
[1729504597970,0.45208245,68386.0,68385.0,0.002654]
[1729504598182,0.59831045,68386.0,68385.0,0.002654]
[1729504598609,0.59831045,68386.0,68385.0,0.001654]
[1729504599029,0.45208245,68386.0,68385.0,0.001654]
[1729504599241,0.4523447,68386.0,68385.0,0.001654]
[1729504599453,0.5985727,68386.0,68385.0,0.001654]
[1729504599663,0.5985727,68386.0,68385.0,0.002654]
[1729504600315,0.4523447,68386.0,68385.0,0.002654]
[1729504600535,0.30338555,68386.0,68385.0,0.148884]
[1729504601466,0.30338555,68386.0,68385.0,0.147884]
[1729504603251,0.30279218,68386.0,68385.0,0.147884]
[1729504603718,0.29279218,68386.0,68385.0,0.147884]
[1729504604406,0.29279218,68386.0,68385.0,0.148884]
[1729504604623,0.29279218,68386.0,68385.0,0.149884]
[1729504605095,0.29279218,68386.0,68385.0,0.147884]
[1729504605336,0.01759218,68386.0,68385.0,0.147884]
[1729504605561,0.01259218,68386.0,68385.0,0.78885385]
[1729504605791,6.2e-07,68386.0,68385.0,0.84149803]
[1729504606014,0.001658,68390.0,68389.0,0.151222]
[1729504606283,0.001658,68390.0,68389.0,0.30475533]
[1729504606512,0.005829,68399.0,68389.0,0.30475533]
[1729504606513,0.000829,68399.0,68398.0,0.151203]
[1729504606731,0.000829,68399.0,68398.0,0.30473488]
[1729504607173,0.000829,68399.0,68398.0,0.494986]
[1729504607391,0.000829,68399.0,68398.0,0.62799556]
[1729504607642,0.000829,68399.0,68398.0,0.62017897]
[1729504607872,0.000829,68399.0,68398.0,0.62617897]
[1729504608106,0.000829,68399.0,68398.0,0.62617876]
[1729504608564,0.000829,68399.0,68398.0,0.63217876]
[1729504609505,0.000829,68399.0,68398.0,0.62760633]
[1729504609735,0.000829,68399.0,68398.0,0.58453423]
[1729504610693,0.000829,68399.0,68398.0,0.69374643]
[1729504611137,0.000829,68399.0,68398.0,0.67190455]
[1729504611350,0.000829,68399.0,68398.0,0.58453423]
[1729504612035,0.000829,68399.0,68398.0,0.67187335]
[1729504612484,0.000829,68399.0,68398.0,0.6500209]
[1729504613147,0.000829,68399.0,68398.0,0.65002096]
[1729504613593,0.000829,68399.0,68398.0,0.58453429]
[1729504614739,0.000829,68399.0,68398.0,0.57853429]
[1729504615190,0.000829,68399.0,68398.0,0.58453429]
[1729504615627,0.000829,68399.0,68398.0,0.57853429]
[1729504615838,0.000653,68399.0,68398.0,0.30473429]
[1729504616267,0.000653,68399.0,68398.0,0.31073429]
[1729504616696,0.0001618,68399.0,68398.0,0.31073429]
[1729504617354,0.0001618,68399.0,68398.0,0.31673429]
[1729504619675,0.0001618,68399.0,68398.0,0.16277514]
[1729504620182,0.0001618,68399.0,68398.0,0.15677514]
[1729504620462,0.0001618,68399.0,68398.0,0.146203]
[1729504620891,0.0001618,68399.0,68398.0,0.158203]
[1729504621372,0.0803618,68399.0,68398.0,0.152203]
[1729504621613,0.0803618,68399.0,68398.0,0.158203]
[1729504621846,0.08696192,68399.0,68398.0,0.158203]
[1729504622353,0.08696192,68399.0,68398.0,0.006]